[Event "IND-ch Women 2019"]
[Site "Karaikkudi"]
[Date "2019.07.22"]
[Round "5.5"]
[White "Kiran, Manisha Mohanty"]
[Black "Srija, Seshadri"]
[Result "0-1"]
[ECO "C73"]
[WhiteElo "2054"]
[BlackElo "2306"]
[Annotator "RC"]
[PlyCount "54"]
[EventDate "2019.07.19"]
[EventType "swiss"]
[EventCountry "IND"]
[SourceTitle "playchess.com"]
[Source "ChessBase"]
[SourceQuality "1"]
[TimeControl "40/5400+30:1800+30"]

1. e4 {[%emt 0:00:56]} e5 {[%emt 0:00:00]} 2. Nf3 {[%emt 0:00:05]} Nc6 {[%emt 0:00:00]} 3. Bb5 {[%emt 0:00:04]} a6 {[%emt 0:00:00]} 4. Ba4 {[%emt 0:00:04]} d6 {[%emt 0:00:12]} 5. Bxc6+ {[%emt 0:02:02]} bxc6 {[%emt 0:00:07]} 6. d4 {[%emt 0:00:04]} f6 {[%emt 0:02:18]} 7. c4 {[%emt 0:01:00]} Ne7 {[%emt 0:01:04]} 8. Nc3 {[%emt 0:00:28]} Ng6 {[%emt 0:00:29]} 9. h3 {[%emt 0:01:29]} Be7 {[%emt 0:01:25]} 10. O-O {[%emt 0:00:55]} O-O {[%emt 0:06:11]} 11. Be3 {[%emt 0:00:33]} Qe8 {[%emt 0:02:56]} 12. Rc1 {[%emt 0:10:27]} f5 {[%emt 0:10:46]} 13. dxe5 {[%emt 0:00:37]} dxe5 {[%emt 0:00:12]} 14. exf5 {[%emt 0:00:07]} Bxf5 {[%emt 0:00:08]} 15. Qe2 {[%emt 0:05:41]} c5 {[%emt 0:09:35]} 16. Nd2 {[%emt 0:13:01]} Nh4 {[%emt 0:07:13]} 17. Nd5 {[%emt 0:08:37]} Bd6 {[%emt 0:00:13]} 18. Bg5 {[%emt 0:25:00]} Nxg2 {[%emt 0:01:58]} 19. Kxg2 {[%emt 0:00:04]} Qg6 {[%emt 0:00:09]} 20. Qe3 {[%emt 0:00:05]} h6 {[%emt 0:01:20]} 21. b4 {[%emt 0:00:52]} cxb4 {[%emt 0:15:47]} 22. c5 {[%emt 0:00:11]} Be6 {[%emt 0:00:16]} 23. Nxb4 {[%emt 0:07:09]} Be7 {[%emt 0:00:25]} 24. h4 {[%emt 0:00:37]} hxg5 {[%emt 0:00:19]} 25. h5 {[%emt 0:00:38]} Qxh5 {[%emt 0:00:39]} 26. Rh1 {[%emt 0:00:23]} Qg4+ {[%emt 0:00:19]} 27. Kf1 {[%emt 0:00:24]} Qxb4 {[%emt 0:01:48]} 0-1

[Event "IND-ch Women 2019"]
[Site "Karaikkudi"]
[Date "2019.07.22"]
[Round "5.8"]
[White "Saranya, J."]
[Black "Nandhidhaa, P V"]
[Result "0-1"]
[ECO "B40"]
[WhiteElo "2067"]
[BlackElo "2259"]
[Annotator "RC"]
[PlyCount "213"]
[EventDate "2019.07.19"]
[EventType "swiss"]
[EventCountry "IND"]
[SourceTitle "playchess.com"]
[Source "ChessBase"]
[SourceQuality "1"]
[TimeControl "40/5400+30:1800+30"]

1. e4 {[%emt 0:00:50]} c5 {[%emt 0:00:00]} 2. Nf3 {[%emt 0:00:03]} e6 {[%emt 0:00:00]} 3. g3 {[%emt 0:00:22]} Nc6 {[%emt 0:00:00]} 4. Bg2 {[%emt 0:00:05]} Nf6 {[%emt 0:00:01]} 5. Qe2 {[%emt 0:01:02]} d5 {[%emt 0:00:35]} 6. exd5 {[%emt 0:01:44]} Nxd5 {[%emt 0:00:06]} 7. O-O {[%emt 0:00:10]} Be7 {[%emt 0:00:06]} 8. Rd1 {[%emt 0:01:48]} Qb6 {[%emt 0:00:20]} 9. Nc3 {[%emt 0:08:00]} O-O {[%emt 0:05:36]} 10. a3 {[%emt 0:14:47]} Nf6 {[%emt 0:10:09]} 11. d3 {[%emt 0:18:44]} Nd4 {[%emt 0:05:25]} 12. Nxd4 {[%emt 0:01:59]} cxd4 {[%emt 0:00:06]} 13. Ne4 {[%emt 0:01:23]} Bd7 {[%emt 0:03:21]} 14. c4 {[%emt 0:04:21]} dxc3 {[%emt 0:02:17]} 15. bxc3 {[%emt 0:01:15]} Nxe4 {[%emt 0:02:40]} 16. Bxe4 {[%emt 0:00:45]} Bc6 {[%emt 0:00:33]} 17. Bf4 {[%emt 0:05:31]} Rac8 {[%emt 0:02:28]} 18. c4 {[%emt 0:06:38]} Rfd8 {[%emt 0:10:47]} 19. a4 {[%emt 0:03:55]} Bf6 {[%emt 0:07:03]} 20. Rab1 {[%emt 0:07:24]} Qa6 {[%emt 0:01:04]} 21. Bxc6 {[%emt 0:00:43]} Rxc6 {[%emt 0:04:07]} 22. Be5 {[%emt 0:07:41]} Bxe5 {[%emt 0:03:06]} 23. Qxe5 {[%emt 0:00:06]} Qxa4 {[%emt 0:00:35]} 24. Ra1 {[%emt 0:00:48]} Qc2 {[%emt 0:06:12]} 25. Rac1 {[%emt 0:01:18]} Qa4 {[%emt 0:03:31]} 26. Ra1 {[%emt 0:00:05]} Qb4 {[%emt 0:01:33]} 27. Rdb1 {[%emt 0:01:38]} Qd2 {[%emt 0:02:48]} 28. Rd1 {[%emt 0:03:32]} Qc2 {[%emt 0:05:58]} 29. Rac1 {[%emt 0:00:19]} Qb3 {[%emt 0:05:23]} 30. Rb1 {[%emt 0:00:09]} Qa3 {[%emt 0:03:42]} 31. Rxb7 {[%emt 0:01:54]} Rxc4 {[%emt 0:06:01]} 32. Qh5 {[%emt 0:01:28]} g6 {[%emt 0:01:23]} 33. Qf3 {[%emt 0:00:09]} Rf8 {[%emt 0:01:30]} 34. Rxa7 {[%emt 0:02:20]} Qc3 {[%emt 0:01:00]} 35. Rd7 {[%emt 0:01:01]} Rc7 {[%emt 0:02:01]} 36. Rxc7 {[%emt 0:00:52]} Qxc7 {[%emt 0:00:01]} 37. Rb1 {[%emt 0:00:14]} Rd8 {[%emt 0:03:03]} 38. Rb7 {[%emt 0:00:41]} Rxd3 {[%emt 0:01:05]} 39. Rxc7 {[%emt 0:02:10]} Rxf3 {[%emt 0:00:06]} 40. h4 {[%emt 0:00:00]} Kg7 {[%emt 0:00:00]} 41. Kg2 {[%emt 0:01:47]} Rd3 {[%emt 0:02:46]} 42. Rb7 {[%emt 0:05:34]} e5 {[%emt 0:01:58]} 43. Ra7 {[%emt 0:02:09]} Kf6 {[%emt 0:00:49]} 44. Ra6+ {[%emt 0:02:12]} Kf5 {[%emt 0:04:57]} 45. Ra4 {[%emt 0:04:45]} h5 {[%emt 0:02:37]} 46. Ra5 {[%emt 0:02:11]} f6 {[%emt 0:01:54]} 47. Ra8 {[%emt 0:01:01]} Rd2 {[%emt 0:01:50]} 48. Re8 {[%emt 0:01:58]} Rd6 {[%emt 0:04:31]} 49. Ra8 {[%emt 0:01:34]} Rd2 {[%emt 0:00:39]} 50. Re8 {[%emt 0:00:05]} e4 {[%emt 0:00:21]} 51. Re7 {[%emt 0:00:51]} Rd5 {[%emt 0:00:24]} 52. Re8 {[%emt 0:01:29]} Ra5 {[%emt 0:00:32]} 53. Re7 {[%emt 0:01:06]} Re5 {[%emt 0:00:06]} 54. Rg7 {[%emt 0:00:05]} e3 {[%emt 0:01:58]} 55. fxe3 {[%emt 0:00:28]} Rxe3 {[%emt 0:00:02]} 56. Rg8 {[%emt 0:02:01]} Ra3 {[%emt 0:00:16]} 57. Rb8 {[%emt 0:02:07]} Ra4 {[%emt 0:00:21]} 58. Rb6 {[%emt 0:01:18]} Ke5 {[%emt 0:03:03]} 59. Rb5+ {[%emt 0:00:38]} Ke4 {[%emt 0:00:32]} 60. Rb6 {[%emt 0:00:45]} Ra2+ {[%emt 0:00:43]} 61. Kg1 {[%emt 0:01:23]} Kf5 {[%emt 0:03:03]} 62. Rb4 {[%emt 0:00:18]} Re2 {[%emt 0:01:12]} 63. Rf4+ {[%emt 0:00:52]} Ke5 {[%emt 0:00:06]} 64. Ra4 {[%emt 0:00:16]} Rd2 {[%emt 0:00:45]} 65. Ra6 {[%emt 0:01:46]} Rd6 {[%emt 0:01:09]} 66. Ra4 {[%emt 0:00:06]} Rd2 {[%emt 0:01:15]} 67. Ra6 {[%emt 0:00:05]} Kf5 {[%emt 0:00:06]} 68. Kf1 {[%emt 0:02:01]} Ke5 {[%emt 0:01:47]} 69. Rb6 {[%emt 0:00:51]} Rd6 {[%emt 0:00:44]} 70. Rb4 {[%emt 0:00:08]} Rd4 {[%emt 0:00:02]} 71. Rb6 {[%emt 0:02:18]} Rg4 {[%emt 0:01:01]} 72. Kf2 {[%emt 0:00:40]} f5 {[%emt 0:00:11]} 73. Rb5+ {[%emt 0:01:03]} Ke4 {[%emt 0:00:16]} 74. Rb4+ {[%emt 0:00:43]} Kd5 {[%emt 0:01:09]} 75. Rb6 {[%emt 0:00:56]} f4 {[%emt 0:01:09]} 76. gxf4 {[%emt 0:00:25]} Ke4 {[%emt 0:00:45]} 77. Rb4+ {[%emt 0:01:21]} Kf5 {[%emt 0:00:06]} 78. Kf3 {[%emt 0:00:41]} Rxh4 {[%emt 0:00:03]} 79. Rb5+ {[%emt 0:00:09]} Kf6 {[%emt 0:00:02]} 80. Kg3 {[%emt 0:00:59]} Rg4+ {[%emt 0:00:14]} 81. Kf3 {[%emt 0:00:06]} Rg1 {[%emt 0:00:23]} 82. Rb2 {[%emt 0:00:36]} Rf1+ {[%emt 0:00:14]} 83. Kg3 {[%emt 0:00:05]} Rd1 {[%emt 0:00:21]} 84. Rb5 {[%emt 0:00:23]} Rd3+ {[%emt 0:00:18]} 85. Kg2 {[%emt 0:00:34]} Ke6 {[%emt 0:01:48]} 86. Rg5 {[%emt 0:00:11]} Kf6 {[%emt 0:00:01]} 87. Rb5 {[%emt 0:00:14]} Rc3 {[%emt 0:00:18]} 88. Ra5 {[%emt 0:00:09]} Rb3 {[%emt 0:00:09]} 89. Rc5 {[%emt 0:00:06]} Kg7 {[%emt 0:00:34]} 90. Ra5 {[%emt 0:00:23]} Kf6 {[%emt 0:01:16]} 91. Rc5 {[%emt 0:00:10]} h4 {[%emt 0:00:10]} 92. Rg5 {[%emt 0:01:02]} Ra3 {[%emt 0:00:51]} 93. Rb5 {[%emt 0:00:46]} Rg3+ {[%emt 0:00:06]} 94. Kf2 {[%emt 0:00:48]} Rg4 {[%emt 0:01:03]} 95. Kf3 {[%emt 0:00:06]} Rg1 {[%emt 0:00:02]} 96. Rb2 {[%emt 0:00:49]} Rg3+ {[%emt 0:00:46]} 97. Ke4 {[%emt 0:01:59]} h3 {[%emt 0:01:06]} 98. Rb8 {[%emt 0:01:01]} Kg7 {[%emt 0:00:23]} 99. Rb2 {[%emt 0:00:25]} Kh6 {[%emt 0:00:40]} 100. Rb8 {[%emt 0:00:34]} Kg7 {[%emt 0:00:28]} 101. Rb2 {[%emt 0:00:06]} Ra3 {[%emt 0:00:20]} 102. Ke5 {[%emt 0:00:33]} Kh6 {[%emt 0:00:32]} 103. f5 {[%emt 0:00:31]} g5 {[%emt 0:03:23]} 104. f6 {[%emt 0:00:24]} Rf3 {[%emt 0:00:37]} 105. Rb8 {[%emt 0:00:56]} g4 {[%emt 0:00:16]} 106. Rh8+ {[%emt 0:00:33]} Kg5 {[%emt 0:00:24]} 107. Ke6 {[%emt 0:01:01]} 0-1

[Event "IND-ch Women 2019"]
[Site "Karaikkudi"]
[Date "2019.07.22"]
[Round "5.15"]
[White "Sunyuktha C M N"]
[Black "Thipsay, Bagyashree Sathe"]
[Result "0-1"]
[ECO "B12"]
[WhiteElo "1815"]
[BlackElo "2093"]
[Annotator "NA RC"]
[PlyCount "66"]
[EventDate "2019.07.19"]
[EventType "swiss"]
[EventCountry "IND"]
[SourceTitle "playchess.com"]
[Source "ChessBase"]
[SourceQuality "1"]
[TimeControl "40/5400+30:1800+30"]

1. e4 {[%emt 0:00:00]} c6 {[%emt 0:00:00]} 2. d4 {[%emt 0:00:09]} d5 {[%emt 0:00:00]} 3. e5 {[%emt 0:00:43]} Bf5 {[%emt 0:00:00]} 4. Nf3 {[%emt 0:00:26]} e6 {[%emt 0:00:35]} 5. Be2 {[%emt 0:00:24]} Nd7 {[%emt 0:00:28]} 6. O-O {[%emt 0:00:22]} h6 {[%emt 0:00:10]} 7. Nbd2 {[%emt 0:00:27]} Ne7 {[%emt 0:00:56] B12: Caro-Kann: Advance Variation} 8. Nb3 {[%emt 0:00:45]} (8. c3 g5 9. Ne1 c5 10. Nc2 Nc6 11. Nb3 c4 12. Nd2 Bg6 13. Bh5 Bd3 14. Re1 Bg7 {0-1 (60) Vachier Lagrave,M (2779)-Nakamura,H (2777) chess.com INT 2018}) 8... g5 {[%emt 1:31:51]} 9. a4 {[%emt 0:33:56]} Qc7 {[%emt 0:00:00]} 10. Bd2 {[%emt 0:07:09]} Bg6 {[%emt 0:00:00]} 11. a5 {[%emt 0:20:39]} Nf5 $146 {[%emt 0:00:00]} ({Predecessor:} 11... a6 12. Rc1 O-O-O 13. Bb4 Nf5 14. Bxf8 Rhxf8 15. c4 dxc4 16. Rxc4 {1-0 (35) Ajrapetian,G (2419)-Konyshev,A (2379) Olginka 2011}) 12. a6 {[%emt 0:02:24]} b6 {[%emt 0:00:00]} 13. c4 {[%emt 0:04:49]} dxc4 {[%emt 0:00:00]} 14. Bxc4 {[%emt 0:00:19]} Rc8 {[%emt 0:00:00]} 15. Rc1 {[%emt 0:12:16]} Qd8 {[%emt 0:00:00]} 16. Qe2 {[%emt 0:09:20]} Ne7 {[%emt 0:00:00]} 17. Bb4 {[%emt 0:03:10]} Bg7 {[%emt 0:00:00]} 18. Nbd2 {[%emt 0:00:59]} Nd5 {[%emt 0:00:00]} 19. Bxd5 {[%emt 0:00:29]} cxd5 {[%emt 0:00:00]} 20. Qb5 {[%emt 0:00:37]} Bf8 {[%emt 0:00:00]} 21. Bd6 {[%emt 0:00:28]} g4 {[%emt 0:00:00]} 22. Rxc8 {[%emt 0:00:28]} Qxc8 {[%emt 0:00:00]} 23. Nh4 {[%emt 0:00:08]} Bh7 {[%emt 0:00:00]} 24. Nb3 $16 {[%emt 0:00:46]} Bxd6 {[%emt 0:00:00]} 25. exd6 {[%emt 0:00:05]} O-O {[%emt 0:00:00]} 26. Rc1 {[%emt 0:01:00]} Qd8 {[%emt 0:00:00]} 27. g3 {[%emt 0:00:36]} Nf6 {[%emt 0:00:00]} 28. Qc6 {[%emt 0:00:29]} Bd3 {[%emt 0:00:00]} 29. Qb7 {[%emt 0:00:29]} Ne4 {[%emt 0:00:00]} 30. f3 {[%emt 0:00:25]} gxf3 {[%emt 0:00:00]} 31. Nxf3 {[%emt 0:00:13]} Qf6 {[%emt 0:00:00]} 32. Ne5 {[%emt 0:00:42]} Qf2+ {[%emt 0:00:00]} 33. Kh1 {[%emt 0:00:01]} Nxg3+ {[%emt 0:00:00]} 0-1

[Event "IND-ch Women 2019"]
[Site "Karaikkudi"]
[Date "2019.07.22"]
[Round "5.17"]
[White "Priyanka, Kumari"]
[Black "Abhirami Madabushi"]
[Result "1-0"]
[ECO "B92"]
[WhiteElo "1991"]
[BlackElo "1689"]
[Annotator "NA RC"]
[PlyCount "77"]
[EventDate "2019.07.19"]
[EventType "swiss"]
[EventCountry "IND"]
[SourceTitle "playchess.com"]
[Source "ChessBase"]
[SourceQuality "1"]
[TimeControl "40/5400+30:1800+30"]

{[%evp 23,73,-22,-53,-47,-29,32767,-5,32767,32767,20,9,-16,37,15,32767,32767,32767,32767,32767,37,31,0,37,23,75,48,46,32767,32767,32767,32767,32767,32767,32767,32767,32767,227,193,328,372,32767,282,32767,333,421,380,396,408,368,407,32767,697]} 1. e4 {[%emt 0:00:09]} c5 {[%emt 0:00:00]} 2. Nf3 {[%emt 0:00:09]} d6 {[%emt 0:00:00]} 3. d4 {[%emt 0:00:07]} cxd4 {[%emt 0:00:04]} 4. Nxd4 {[%emt 0:00:04]} Nf6 {[%emt 0:00:11]} 5. Nc3 {[%emt 0:00:08]} a6 {[%emt 0:00:04]} 6. Be2 {[%emt 0:04:07]} e5 {[%emt 0:00:06]} 7. Nf3 {[%emt 0:00:44]} Be7 {[%emt 0:00:47]} 8. Bg5 {[%emt 0:00:52]} Nbd7 {[%emt 0:00:14]} 9. a4 {[%emt 0:03:45] B92: Sicilian Najdorf: 6 Be2} h6 {[%emt 0:00:10]} 10. Bxf6 {[%emt 0:08:16]} (10. Be3 Ng4 11. Bc1 Ngf6 12. O-O Nc5 13. Nd2 O-O 14. b4 Ne6 15. Nc4 Nd4 16. Be3 Nxe2+ 17. Qxe2 {½-½ (40) Giri,A (2783)-Nepomniachtchi,I (2763) St Petersburg 2018}) 10... Nxf6 {[%emt 0:00:16]} 11. Nd2 {[%emt 0:01:00]} O-O $146 {[%emt 0:00:44]} ({Predecessor:} 11... Be6 12. Nc4 Rc8 13. Ne3 Rxc3 14. bxc3 Nxe4 15. Bg4 Qc8 16. O-O O-O 17. Bxe6 fxe6 {0-1 (57) Ciganovic,N (2263)-Cerveny,M (2386) Zadar 2017}) 12. a5 {[%emt 0:10:33]} Be6 {[%emt 0:01:21]} 13. Nc4 {[%emt 0:03:11]} Rc8 {[%emt 0:04:02]} 14. Nb6 {[%emt 0:01:09]} Rc5 {[%emt 0:00:19]} (14... Rxc3 $5 15. bxc3 Nxe4 $15) 15. O-O {[%emt 0:04:28]} d5 {[%emt 0:01:47]} 16. exd5 {[%emt 0:08:18]} Bxd5 {[%emt 0:00:09]} ({Don't play} 16... Nxd5 $6 17. Ncxd5 Rxd5 18. Nxd5 $16) 17. Nca4 {[%emt 0:05:42]} Rc6 {[%emt 0:04:31]} 18. Nxd5 {[%emt 0:04:07]} Nxd5 {[%emt 0:00:03]} 19. Bf3 {[%emt 0:00:39]} Rd6 {[%emt 0:00:02]} 20. Qe2 {[%emt 0:01:00]} Bf6 {[%emt 0:00:05]} 21. g3 {[%emt 0:03:02]} Qxa5 {[%emt 0:02:41]} 22. c4 {[%emt 0:03:25]} ({Better is} 22. Qd3 $14 e4 23. Bxe4) 22... Ne7 {[%emt 0:01:18]} 23. Bxb7 {[%emt 0:01:42]} Qb4 {[%emt 0:12:53]} 24. c5 {[%emt 0:04:58]} Rd2 {[%emt 0:00:07]} 25. Qxa6 {[%emt 0:02:42]} e4 {[%emt 0:00:04]} 26. Qb6 {[%emt 0:01:18]} Qd4 {[%emt 0:00:58]} 27. c6 {[%emt 0:02:02]} Qxb6 {[%emt 0:00:29]} 28. Nxb6 {[%emt 0:00:07]} Rxb2 {[%emt 0:00:02]} 29. Rab1 {[%emt 0:01:39]} Rc2 {[%emt 0:05:20]} 30. Nd7 {[%emt 0:01:41]} Rd8 {[%emt 0:00:16]} (30... Nxc6 $142 31. Nxf8 Kxf8) 31. Rbc1 {[%emt 0:04:07]} Rxc1 {[%emt 0:00:09]} 32. Rxc1 {[%emt 0:01:14]} Bd4 {[%emt 0:00:06]} 33. Rc4 {[%emt 0:01:59]} Ba7 {[%emt 0:01:36]} 34. Ra4 {[%emt 0:01:09]} Bb8 {[%emt 0:01:06]} 35. Nxb8 {[%emt 0:00:21]} Rxb8 {[%emt 0:00:03]} 36. Rxe4 {[%emt 0:00:22]} Kf8 {[%emt 0:01:36] [#]} 37. Rxe7 $18 {[%emt 0:00:28] Promotion} Kxe7 {[%emt 0:00:06]} 38. c7 {[%emt 0:00:06]} Rxb7 {[%emt 0:00:22]} 39. c8=Q {[%emt 0:00:11]} 1-0

[Event "IND-ch Women 2019"]
[Site "Karaikkudi"]
[Date "2019.07.22"]
[Round "5.18"]
[White "Harshita Guddanti"]
[Black "Shetye, Siddhali"]
[Result "1-0"]
[ECO "C26"]
[WhiteElo "2078"]
[BlackElo "1837"]
[Annotator "NA RC"]
[PlyCount "79"]
[EventDate "2019.07.19"]
[EventType "swiss"]
[EventCountry "IND"]
[SourceTitle "playchess.com"]
[Source "ChessBase"]
[SourceQuality "1"]
[TimeControl "40/5400+30:1800+30"]

1. e4 {[%emt 0:00:02]} e5 {[%emt 0:00:00]} 2. Nc3 {[%emt 0:00:50]} Nc6 {[%emt 0:00:01]} 3. g3 {[%emt 0:00:55]} Nf6 {[%emt 0:01:59]} 4. Bg2 {[%emt 0:00:36]} Bc5 {[%emt 0:01:57]} 5. d3 {[%emt 0:01:45]} a6 {[%emt 0:13:14]} 6. h3 {[%emt 0:01:26] C26: Vienna Game: 2...Nf6, sidelines} d6 {[%emt 0:07:53]} 7. Nge2 {[%emt 0:01:19]} h6 {[%emt 0:07:56]} (7... Be6 8. f4 h6 9. f5 Bd7 10. b3 Nd4 11. Bb2 Bc6 12. Nxd4 Bxd4 13. Qe2 b5 14. Nd1 {1-0 (60) Nakamura,H (2774)-Topalov,V (2749) Saint Louis 2017}) 8. O-O {[%emt 0:04:00]} O-O {[%emt 0:03:19]} 9. Kh2 {[%emt 0:06:17]} Nd4 {[%emt 0:58:11]} 10. f4 {[%emt 0:16:55]} exf4 {[%emt 0:00:00]} 11. Nxf4 {[%emt 0:03:31]} Ne6 $146 {[%emt 0:00:00]} ({Predecessor:} 11... c6 12. b3 Nh7 13. Bb2 Ng5 14. Nce2 Nxe2 15. Qxe2 Ne6 16. Nh5 {½-½ (50) Rjanova,V (2208)-Svidinsky,D (2064) St Petersburg 2012}) 12. Nce2 {[%emt 0:08:00]} Bb6 {[%emt 0:00:00]} 13. Bd2 {[%emt 0:05:51]} Nxf4 {[%emt 0:00:00]} 14. Nxf4 {[%emt 0:01:42]} c6 {[%emt 0:00:00]} 15. Bc3 {[%emt 0:03:06]} Nd7 {[%emt 0:00:00]} 16. d4 {[%emt 0:09:52]} Ba5 {[%emt 0:00:00]} 17. b4 {[%emt 0:01:35]} Bc7 {[%emt 0:00:00]} 18. Nh5 {[%emt 0:01:54]} Qe7 {[%emt 0:01:06]} 19. Bd2 {[%emt 0:02:03]} Kh7 {[%emt 0:00:52]} 20. Qf3 {[%emt 0:28:21]} ({Don't do} 20. Qg4 $6 g6 $14) 20... g6 {[%emt 0:02:02]} 21. Nf4 {[%emt 0:00:00]} Nf6 {[%emt 0:00:52]} 22. Rae1 {[%emt 0:00:00]} Bd7 {[%emt 0:00:29]} 23. e5 {[%emt 0:00:00]} ({Better is} 23. c4 $18) 23... dxe5 {[%emt 0:00:27]} 24. dxe5 {[%emt 0:00:00]} Nd5 $18 {[%emt 0:00:58]} (24... Ng8 $16 {is a better defense.}) 25. Nxd5 {[%emt 0:00:00]} cxd5 {[%emt 0:00:01]} 26. Qe3 {[%emt 0:00:00]} Qg5 {[%emt 0:01:09]} 27. Qxg5 {[%emt 0:00:00]} hxg5 {[%emt 0:00:01]} 28. Bxd5 {[%emt 0:00:00]} Be6 {[%emt 0:00:52]} 29. Bxe6 {[%emt 0:00:00]} fxe6 {[%emt 0:00:01]} 30. Bxg5 {[%emt 0:00:00]} Rxf1 {[%emt 0:00:25]} 31. Rxf1 {[%emt 0:00:00]} Bxe5 {[%emt 0:00:02]} 32. Re1 {[%emt 0:00:00]} Bc3 {[%emt 0:00:53]} 33. Rxe6 {[%emt 0:00:00]} Bxb4 {[%emt 0:00:02]} 34. Rb6 {[%emt 0:00:00]} a5 {[%emt 0:00:21]} 35. Rxb7+ {[%emt 0:00:00]} Kg8 {[%emt 0:00:01]} 36. Bf4 {[%emt 0:00:00]} Re8 {[%emt 0:00:52]} 37. Rb8 {[%emt 0:00:00]} Rxb8 {[%emt 0:00:42]} 38. Bxb8 {[%emt 0:00:00]} Kf7 {[%emt 0:00:06]} 39. Kg2 {[%emt 0:00:00]} Ke6 {[%emt 0:00:01]} 40. c4 {[%emt 0:00:00]} 1-0

[Event "IND-ch Women 2019"]
[Site "Karaikkudi"]
[Date "2019.07.22"]
[Round "5.19"]
[White "Bakshi, Rutuja"]
[Black "ThamaraiSelvi, P."]
[Result "1-0"]
[ECO "A14"]
[WhiteElo "1958"]
[BlackElo "1752"]
[Annotator "NA RC"]
[PlyCount "121"]
[EventDate "2019.07.19"]
[EventType "swiss"]
[EventCountry "IND"]
[SourceTitle "playchess.com"]
[Source "ChessBase"]
[SourceQuality "1"]
[TimeControl "40/5400+30:1800+30"]

1. c4 {[%emt 0:00:00]} Nf6 {[%emt 0:00:08]} 2. Nf3 {[%emt 0:00:00]} e6 {[%emt 0:00:06]} 3. g3 {[%emt 0:00:30]} b6 {[%emt 0:00:40]} 4. Bg2 {[%emt 0:00:34]} Bb7 {[%emt 0:00:12]} 5. O-O {[%emt 0:01:10]} Be7 {[%emt 0:00:03]} 6. b3 {[%emt 0:06:37]} O-O {[%emt 0:02:33]} 7. Bb2 {[%emt 0:00:06]} d5 {[%emt 0:01:16]} 8. Qc2 {[%emt 0:09:58]} Nbd7 {[%emt 0:07:12] A14: English Opening: 1...e6 with b3 by White} (8... h6 9. d4 Nbd7 10. cxd5 exd5 11. Nc3 a6 12. Rac1 Bd6 13. Nh4 g6 14. Nxg6 fxg6 15. Qxg6+ Kh8 16. Qxh6+ {1-0 (41) Krylov,M (2476)-Usmanov,V (2463) Sochi 2017}) 9. Ne5 {[%emt 0:07:16]} c5 {[%emt 0:03:12]} 10. d3 {[%emt 0:02:41]} Qc7 {[%emt 0:01:47]} 11. Nxd7 {[%emt 0:01:45]} Qxd7 {[%emt 0:00:19]} 12. e4 {[%emt 0:02:19]} dxe4 $146 {[%emt 0:12:00]} ({Predecessor:} 12... d4 13. Nd2 e5 14. Nf3 Qc7 15. Rae1 Bc8 16. Nxe5 Qxe5 {0-1 (62) Chuc,D (1850)-Le,Q (1986) Da Lat 2013}) 13. dxe4 {[%emt 0:00:05]} Qc6 {[%emt 0:01:12]} 14. Nc3 {[%emt 0:11:42]} Rfd8 {[%emt 0:06:11]} 15. f4 {[%emt 0:06:23]} Rd4 {[%emt 0:11:11]} 16. Rf2 {[%emt 0:12:27]} Ng4 {[%emt 0:07:16]} 17. Re2 $1 {[%emt 0:03:12]} Qd7 {[%emt 0:09:38]} 18. Bh3 {[%emt 0:23:20]} h5 {[%emt 0:04:06]} 19. Nb5 {[%emt 0:03:53]} Rd3 {[%emt 0:01:20]} 20. Bxg4 {[%emt 0:02:04]} hxg4 {[%emt 0:00:06]} 21. Nc7 {[%emt 0:00:14]} Rd8 {[%emt 0:06:58]} 22. Nd5 {[%emt 0:00:02]} Rf3 {[%emt 0:00:11]} 23. Ne3 {[%emt 0:00:21]} f5 $1 {[%emt 0:04:12]} 24. Rd1 {[%emt 0:00:57]} Qc6 {[%emt 0:02:50]} 25. Rxd8+ {[%emt 0:00:24]} Bxd8 {[%emt 0:00:01]} 26. Qd2 {[%emt 0:00:25]} Bc7 {[%emt 0:13:20]} 27. Qc3 {[%emt 0:00:54]} Qd7 {[%emt 0:00:55]} 28. Qe1 {[%emt 0:03:00]} Bxe4 {[%emt 0:01:31]} 29. Nxg4 {[%emt 0:00:38]} Rd3 {[%emt 0:00:06]} 30. Nf2 {[%emt 0:00:14]} Rd6 {[%emt 0:01:58]} 31. Be5 {[%emt 0:00:16]} Rc6 $2 {[%emt 0:01:05]} (31... Bb7) 32. Nxe4 {[%emt 0:00:49]} Bxe5 {[%emt 0:00:30]} 33. fxe5 {[%emt 0:00:09]} fxe4 {[%emt 0:00:06]} 34. Rd2 {[%emt 0:00:25]} Qe7 {[%emt 0:00:47]} 35. Qxe4 {[%emt 0:00:21]} Rc8 {[%emt 0:00:02]} 36. Qg6 {[%emt 0:01:52]} Re8 {[%emt 0:01:34]} 37. Rd6 {[%emt 0:00:13]} Kf8 {[%emt 0:00:10]} 38. Qh5 {[%emt 0:00:57]} Kg8 {[%emt 0:00:22]} 39. Qg6 {[%emt 0:00:16]} Kf8 {[%emt 0:00:49]} 40. Qg4 {[%emt 0:00:00]} (40. Kf2 $18) 40... Kf7 {[%emt 0:00:00]} (40... Qf7 $16 {is a better defense.} 41. h4 Qf5 42. Qxf5+ exf5) 41. Qf4+ {[%emt 0:03:29]} (41. h4 $142) 41... Kg6 {[%emt 0:02:51]} (41... Kg8 $142 42. h4 Rf8) 42. h4 {[%emt 0:03:08]} Rd8 {[%emt 0:04:34]} (42... Kh7 $142 43. Qf3 Kg8) 43. Qe4+ {[%emt 0:04:26]} ({Weaker is} 43. Qg4+ Kf7 $18) 43... Kf7 {[%emt 0:00:33]} 44. Qf3+ {[%emt 0:00:29]} Kg8 {[%emt 0:00:35]} 45. Qc6 $18 {[%emt 0:01:35]} Rf8 {[%emt 0:26:02]} 46. Qd7 {[%emt 0:08:29]} Re8 {[%emt 0:00:00]} 47. Qxe7 {[%emt 0:00:55]} Rxe7 {[%emt 0:00:00]} 48. Kg2 {[%emt 0:00:18]} Kf7 {[%emt 0:00:00]} 49. Kf3 {[%emt 0:00:04]} Rc7 {[%emt 0:00:00]} 50. Kf4 {[%emt 0:00:37]} Rb7 {[%emt 0:00:00]} 51. Kg5 {[%emt 0:00:14]} a6 {[%emt 0:00:00]} 52. Rc6 {[%emt 0:00:32]} Ke7 {[%emt 0:00:00]} 53. Kg6 {[%emt 0:00:10]} Kd7 {[%emt 0:00:00]} 54. Rd6+ {[%emt 0:00:03]} Ke7 {[%emt 0:00:00]} 55. Kxg7 {[%emt 0:00:47]} b5 {[%emt 0:00:00]} 56. Rxa6 {[%emt 0:01:09]} bxc4 {[%emt 0:00:00]} 57. bxc4 {[%emt 0:00:03]} Rb4 {[%emt 0:00:00]} 58. Ra7+ {[%emt 0:00:04]} Ke8 {[%emt 0:00:00]} 59. Kf6 {[%emt 0:00:09]} Rxc4 {[%emt 0:00:00]} 60. Kxe6 {[%emt 0:00:03]} Kf8 {[%emt 0:00:00]} 61. Kf6 {[%emt 0:00:21]} 1-0